bitfinex/quotes_SOLUSD_20260114
["timestamp","ask_amount","ask_price","bid_price","bid_amount"]
[1768374458345,0.71678402,144.79,144.74,4.00417058]
[1768374458517,0.71678402,144.79,144.74,4.67873371]
[1768374458721,11.62909743,144.8,144.75,0.67456313]
[1768374458918,4.00417058,144.77,144.72,0.67456313]
[1768374459124,0.71857511,144.78,144.73,4.67873371]
[1768374459326,0.53946658,144.79,144.75,4.67873371]
[1768374459526,11.4499889,144.8,144.76,0.67456313]
[1768374459846,0.71678402,144.79,144.74,4.67873371]
[1768374460160,4.00417058,144.76,144.72,0.67456313]
[1768374460534,2.26766143,144.76,144.71,12.6]
[1768374460746,4.00417058,144.77,144.71,16.60417058]
[1768374462036,4.00417058,144.76,144.71,16.60417058]
[1768374462460,4.00417058,144.76,144.71,12.6]
[1768374462833,4.00417058,144.77,144.71,23.51452297]
[1768374463834,4.00417058,144.77,144.71,12.6]
[1768374464041,4.00417058,144.77,144.71,16.60417058]
[1768374464338,2.81198961,144.77,144.71,16.60417058]
[1768374464931,2.81198961,144.77,144.71,79.40417058]
[1768374465148,4.00417058,144.77,144.71,79.40417058]
[1768374465323,4.00417058,144.77,144.71,75.4]
[1768374465525,7.62468127,144.8,144.71,16.60417058]
[1768374465526,0.71857511,144.8,144.71,16.60417058]
[1768374465746,4.00417058,144.77,144.71,16.60417058]
[1768374466536,0.71857511,144.8,144.71,16.60417058]
[1768374466736,4.00417058,144.78,144.71,12.6]
[1768374466952,4.00417058,144.78,144.72,4.00417058]
[1768374468346,22.83412092,144.81,144.74,6.6801107]
[1768374468347,15.92826015,144.81,144.74,6.6801107]
[1768374468528,0.71857511,144.79,144.75,12.6]
[1768374468728,4.00417058,144.79,144.75,12.6]
[1768374470033,0.71857511,144.8,144.75,12.6]
[1768374470356,4.00417058,144.79,144.75,12.6]
[1768374470850,4.72274569,144.79,144.75,12.6]
[1768374471053,8.64661326,144.81,144.75,12.6]
[1768374471239,4.00417058,144.79,144.75,12.6]
[1768374471444,4.00417058,144.8,144.75,12.6]
[1768374471645,0.71857511,144.79,144.75,12.6]
[1768374472029,4.00417058,144.8,144.75,12.6]
[1768374472872,0.71857511,144.78,144.75,12.6]
[1768374473165,4.00417058,144.79,144.76,0.67456313]
[1768374473838,4.00417058,144.79,144.75,12.6]
[1768374474037,4.00417058,144.78,144.75,12.6]
[1768374474337,14.83374407,144.81,144.75,12.6]
[1768374474338,1e-08,144.77,144.75,13.27456313]
[1768374474543,4.00417058,144.78,144.76,0.67456313]
[1768374474748,4.00417058,144.79,144.76,0.67456313]
[1768374474961,0.71857511,144.78,144.75,12.6]
[1768374475341,4.00417058,144.79,144.76,0.67456313]
[1768374475543,4.00417058,144.78,144.75,12.6]
[1768374475757,4.00417058,144.78,144.76,0.67456313]
[1768374476762,0.71857511,144.8,144.76,0.67456313]
[1768374477077,4.00417058,144.78,144.76,0.67456313]
[1768374478071,0.71857511,144.78,144.75,12.6]
[1768374478239,7.92803815,144.81,144.75,13.27456313]
[1768374478434,7.92803815,144.81,144.75,12.6]
[1768374478435,4.00417058,144.78,144.75,12.6]
[1768374479162,14.8337194,144.81,144.74,0.67456313]
[1768374479363,4.00417058,144.76,144.73,12.6]
[1768374479572,4.00417058,144.76,144.74,0.67456313]
[1768374480563,4.00417058,144.76,144.73,12.6]
[1768374480564,4.00417058,144.75,144.73,12.6]
[1768374480750,4.00417058,144.76,144.73,12.6]
[1768374481150,0.71857511,144.75,144.73,12.6]
[1768374481860,0.71857511,144.74,144.73,12.6]
[1768374482959,4.72274569,144.76,144.73,12.6]
[1768374484137,0.71857511,144.76,144.73,12.6]
[1768374484343,0.71857511,144.76,144.72,12.6]
[1768374486168,4.72274569,144.76,144.72,12.6]
[1768374488148,0.71296378,144.75,144.72,12.6]
[1768374488362,4.00417058,144.76,144.72,13.29905108]
[1768374488869,4.00417058,144.76,144.72,12.6]
[1768374489566,4.00417058,144.76,144.72,13.29905108]
[1768374490272,4.71713436,144.76,144.72,13.29905108]
[1768374491164,4.00417058,144.79,144.74,0.69905108]
[1768374491365,2.56322745,144.79,144.75,12.6]
[1768374491572,3.27619123,144.79,144.75,13.29905108]
[1768374491878,0.71296378,144.79,144.75,13.29905108]
[1768374492052,3.27619123,144.79,144.75,13.29905108]
[1768374493371,2.56322745,144.78,144.75,13.29905108]
[1768374493548,0.71296378,144.79,144.75,13.29905108]
[1768374493748,2.56322745,144.78,144.75,13.29905108]
[1768374495378,2.71963902,144.78,144.75,12.6]
[1768374495676,2.56322745,144.78,144.76,0.69905108]
[1768374496169,2.56322745,144.79,144.76,0.69905108]
[1768374497178,2.56322745,144.78,144.75,12.6]
[1768374497357,0.70739826,144.79,144.75,12.6]
[1768374497676,2.56322745,144.78,144.75,13.29905108]
[1768374498573,2.72514889,144.78,144.75,12.6]
[1768374500054,0.6985008,144.8,144.75,13.28217212]
[1768374500275,2.73395737,144.79,144.75,13.28217212]
[1768374500866,2.56322745,144.79,144.76,0.68217212]
[1768374501580,0.17595485,144.78,144.75,12.6]
[1768374501879,2.56322745,144.79,144.76,0.68217212]
[1768374502269,0.6985008,144.8,144.75,12.6]
[1768374502476,2.73395737,144.79,144.75,12.6]
[1768374502679,0.17072992,144.78,144.75,12.6]
[1768374502879,2.56322745,144.79,144.75,12.6]
[1768374503264,2.56322745,144.79,144.75,13.28217212]
[1768374503870,2.56322745,144.79,144.76,0.68217212]
[1768374504595,10.4912656,144.81,144.76,0.68217212]
[1768374505083,11.09149095,144.81,144.76,0.68217212]
[1768374505379,10.4912656,144.81,144.77,0.68217212]
[1768374505766,11.08647869,144.81,144.77,0.68217212]
[1768374505967,10.4912656,144.81,144.77,0.68217212]
[1768374506893,10.49055164,144.81,144.77,0.68217212]
[1768374507699,10.49055164,144.81,144.78,12.6]
[1768374508761,10.58955164,144.81,144.78,12.6]
[1768374511380,10.49055164,144.81,144.78,13.28217212]
[1768374511592,11.08576473,144.81,144.78,12.6]
[1768374512090,0.1,144.85,144.78,12.6]
[1768374512091,0.1,144.85,144.8,0.68217212]
[1768374512269,0.26336213,144.85,144.81,12.6]
[1768374512462,0.1,144.85,144.82,12.6]
[1768374513868,0.199,144.87,144.82,12.6]
[1768374514172,0.199,144.87,144.82,13.28217212]
[1768374514375,0.199,144.87,144.83,0.68217212]
[1768374515768,0.1,144.87,144.83,0.68217212]
[1768374519390,0.65461309,144.87,144.78,0.69070313]
[1768374519693,0.66022535,144.85,144.78,0.7162804]
[1768374520465,3.22273884,144.85,144.78,0.7162804]
[1768374520672,2.56251349,144.85,144.78,0.7162804]
[1768374521191,2.66251349,144.88,144.79,0.7162804]
[1768374521496,2.56251349,144.87,144.79,0.7162804]
[1768374522570,0.1,144.88,144.8,0.7162804]
[1768374522770,2.66251349,144.88,144.82,0.7162804]
[1768374523693,0.1,144.88,144.82,0.7162804]
[1768374524673,0.75461309,144.88,144.82,0.7162804]
[1768374526777,0.1,144.88,144.82,7.62139819]
[1768374526975,0.1,144.88,144.83,0.7162804]
[1768374528374,0.75461309,144.88,144.83,0.7162804]
[1768374528579,0.64911252,144.86,144.81,0.7162804]
[1768374528897,0.66022535,144.87,144.81,0.7162804]
[1768374529097,3.22273884,144.87,144.81,0.7162804]
[1768374530885,0.66022535,144.87,144.81,0.7162804]
[1768374531084,3.22273884,144.87,144.81,0.7162804]
[1768374532203,0.099,144.86,144.81,0.7162804]
[1768374535085,2.56251349,144.87,144.81,0.7162804]
[1768374535286,3.32273884,144.88,144.81,0.7162804]
[1768374535489,0.099,144.87,144.82,0.7162804]
[1768374537108,2.76151349,144.88,144.82,0.7162804]
[1768374537491,0.199,144.88,144.82,0.7162804]
[1768374537794,2.56251349,144.85,144.82,0.7162804]
[1768374538003,3.21162601,144.85,144.79,0.7162804]
[1768374538207,0.1100017,144.84,144.79,0.7162804]
[1768374538506,3.22273884,144.86,144.79,0.7162804]
[1768374538691,3.22273884,144.86,144.8,0.7162804]
[1768374538890,2.56251349,144.85,144.8,0.7162804]
[1768374539111,2.66151349,144.85,144.8,0.7162804]
[1768374540388,7.00227013,144.88,144.8,0.7162804]
[1768374540389,3.21712658,144.84,144.8,0.7162804]
[1768374541913,0.65461309,144.84,144.8,0.7162804]
[1768374542513,2.56251349,144.87,144.8,0.7162804]
[1768374542715,2.66151349,144.87,144.8,0.7162804]
[1768374543507,2.66251349,144.88,144.81,0.7162804]
[1768374543685,2.76151349,144.88,144.81,0.7162804]
[1768374544207,0.199,144.88,144.81,0.7162804]
[1768374544390,0.1,144.88,144.81,0.7162804]
[1768374544790,0.75461309,144.88,144.81,0.7162804]
[1768374548598,3.31712658,144.88,144.81,0.7162804]
[1768374548792,0.75461309,144.88,144.81,0.7162804]
[1768374551414,4.75431455,144.88,144.81,0.7162804]
[1768374552406,0.10455613,144.87,144.81,0.7162804]
[1768374552823,4.09970146,144.88,144.82,0.6639739]
[1768374553123,0.1,144.88,144.84,0.6639739]
[1768374555022,0.199,144.88,144.84,0.6639739]
[1768374555223,0.10455613,144.84,144.79,0.6639739]
[1768374556094,0.66022535,144.85,144.79,7.57015439]
[1768374556299,4.09970146,144.88,144.81,0.6639739]
[1768374556520,4.09970146,144.88,144.83,0.6639739]
[1768374556720,4.09970146,144.88,144.84,0.6639739]
[1768374558206,0.1,144.88,144.84,0.6639739]
[1768374558724,4.09970146,144.88,144.84,0.6639739]
[1768374560927,0.1,144.88,144.84,0.6639739]
[1768374561508,4.09970146,144.88,144.84,0.6639739]
[1768374563204,3.99970146,144.85,144.82,0.67530278]
[1768374563398,3.99970146,144.84,144.81,0.67530278]
[1768374563908,4.10970316,144.85,144.81,0.67530278]
[1768374564120,3.99970146,144.84,144.81,0.67530278]
[1768374565218,3.99970146,144.83,144.79,0.67530278]
[1768374565421,0.64372141,144.84,144.79,0.67530278]
[1768374565422,4.64342287,144.84,144.8,12.58]
[1768374565616,4.64342287,144.84,144.8,13.25530278]
[1768374566423,0.1153389,144.83,144.8,11.93511355]
[1768374566621,3.99970146,144.83,144.8,11.93511355]
[1768374566823,3.99970146,144.83,144.8,12.61041633]
[1768374567137,3.99970146,144.84,144.8,12.61041633]
[1768374567440,3.99970146,144.83,144.8,11.93511355]
[1768374568433,3.99970146,144.81,144.76,0.67530278]
[1768374568640,3.99970146,144.81,144.75,65.93506328]
[1768374568641,3.99970146,144.78,144.75,66.61036606]
[1768374570734,3.99970146,144.79,144.75,66.61036606]
[1768374572238,3.99970146,144.8,144.76,0.67530278]
[1768374574248,6.90213895,144.89,144.78,0.67530278]
[1768374574533,3.99970146,144.85,144.79,0.67530278]
[1768374580129,3.99970146,144.86,144.79,0.67530278]
[1768374580448,3.99970146,144.86,144.8,0.70456727]
[1768374580744,3.99970146,144.84,144.8,0.70456727]
[1768374582620,3.99970146,144.83,144.8,12.6]
[1768374582817,3.99970146,144.84,144.8,12.6]
[1768374583021,0.1,144.88,144.8,12.6]
[1768374583222,3.99970146,144.84,144.8,13.30456727]
[1768374583421,3.99970146,144.84,144.8,12.6]
[1768374583637,3.99970146,144.84,144.79,6.90649392]
[1768374583834,3.99970146,144.84,144.79,19.50649392]
[1768374584036,3.99970146,144.84,144.79,20.21106119]
[1768374584545,0.1,144.88,144.79,20.21106119]
[1768374584728,3.99970146,144.84,144.79,20.21106119]
[1768374585345,0.1,144.88,144.79,7.61106119]
[1768374585650,3.99970146,144.84,144.79,20.21106119]
[1768374586937,0.1,144.88,144.79,20.21106119]
[1768374587233,3.99970146,144.84,144.79,20.21106119]
[1768374589458,3.99970146,144.83,144.79,20.21106119]
[1768374589952,3.99970146,144.83,144.8,0.70456727]
[1768374590735,3.99970146,144.83,144.79,20.21106119]
[1768374591461,3.99970146,144.84,144.79,20.21106119]
[1768374592664,3.99970146,144.84,144.8,0.70456727]
[1768374593842,3.99970146,144.84,144.79,12.6]
[1768374594636,3.99970146,144.84,144.79,13.30456727]
[1768374595142,3.99970146,144.83,144.78,6.90685786]
[1768374595471,3.99970146,144.83,144.79,12.58]
[1768374596051,3.99970146,144.83,144.78,12.58]
[1768374597062,3.99970146,144.83,144.78,13.28456727]
[1768374598160,3.99970146,144.84,144.78,20.19152505]
[1768374598361,0.1,144.88,144.79,0.70456727]
[1768374598563,3.99970146,144.84,144.79,0.70456727]
[1768374601267,3.99970146,144.83,144.79,0.70456727]
[1768374601769,3.99970146,144.83,144.78,13.28456727]
[1768374602148,7.0023035,144.88,144.77,0.70456727]
[1768374602149,3.99970146,144.81,144.77,0.70456727]
[1768374602343,3.65482612,144.81,144.77,12.58]
[1768374602871,3.65482612,144.81,144.77,13.28456727]
[1768374603168,3.99970146,144.81,144.77,13.28456727]
[1768374605184,3.99970146,144.81,144.78,0.70276313]
[1768374605671,3.99970146,144.81,144.77,12.58]
[1768374605871,3.99970146,144.82,144.77,12.58]
[1768374606168,6.90324475,144.86,144.77,12.58]
[1768374606374,3.99970146,144.8,144.75,72.8432976]
[1768374606669,3.99970146,144.8,144.76,13.30276313]
[1768374606861,3.99970146,144.8,144.76,0.70276313]
[1768374609268,3.99970146,144.8,144.75,79.23782641]
[1768374609470,3.99970146,144.78,144.75,66.63782641]
[1768374609766,3.99970146,144.83,144.73,6.9092303]
[1768374609767,3.99970146,144.76,144.73,0.70276313]
[1768374610852,6.90587603,144.81,144.73,0.70276313]
[1768374611059,3.99970146,144.76,144.73,0.70276313]
[1768374611363,3.9697014,144.76,144.74,0.70276313]
[1768374612177,3.9697014,144.76,144.68,17.27877874]
[1768374612178,3.99970146,144.75,144.72,0.70276313]
[1768374612363,3.67099114,144.75,144.72,0.70276313]
[1768374612769,3.99970146,144.76,144.72,0.70276313]
[1768374613389,2.56450157,144.76,144.72,0.70276313]
[1768374614476,6.90560044,144.81,144.72,0.70276313]
[1768374614681,2.56450157,144.76,144.72,0.70276313]
[1768374615781,2.56450157,144.77,144.72,0.70276313]
[1768374615984,7.36012977,144.82,144.73,0.70276313]
[1768374616277,2.56450157,144.79,144.73,0.70276313]
[1768374617560,2.56450157,144.78,144.73,0.70276313]
[1768374618281,2.56450157,144.77,144.73,0.70276313]
[1768374618980,2.56450157,144.78,144.73,0.70276313]
[1768374621261,6.90577488,144.81,144.73,0.70276313]
[1768374621595,2.56450157,144.78,144.73,0.70276313]
[1768374622260,2.56450157,144.75,144.71,0.69029145]
[1768374622460,0.45500001,144.82,144.71,0.69029145]
[1768374622777,2.56450157,144.78,144.71,0.69029145]
[1768374625088,6.90568688,144.81,144.71,0.69029145]
[1768374625280,2.56450157,144.78,144.71,0.69029145]
[1768374626363,2.56450157,144.77,144.71,0.69029145]
[1768374626669,2.56400286,144.77,144.73,0.69029145]
[1768374627470,2.56400286,144.76,144.73,0.69029145]
[1768374628372,2.56400286,144.77,144.73,0.69029145]
[1768374629462,2.56400286,144.76,144.73,0.69029145]
[1768374629877,6.90660895,144.79,144.73,0.69029145]
[1768374630068,2.56400286,144.76,144.73,0.69029145]
[1768374630280,2.56400286,144.77,144.73,0.69029145]
[1768374631988,2.56400286,144.78,144.73,3.25429431]
[1768374633571,2.56400286,144.78,144.73,0.69029145]
[1768374633789,6.90612562,144.8,144.74,3.25429431]
[1768374633979,2.56400286,144.78,144.74,0.69029145]
[1768374635103,2.56400286,144.77,144.74,0.69029145]
[1768374638777,2.56400286,144.79,144.75,0.71659754]
[1768374639689,2.56400286,144.79,144.73,3.2806004]
[1768374639991,2.56400286,144.79,144.74,0.71659754]
[1768374640183,2.56400286,144.78,144.74,0.71659754]
[1768374642186,2.56400286,144.78,144.73,0.71659754]
[1768374643589,2.56400286,144.77,144.73,0.71659754]
[1768374645196,6.9051236,144.82,144.73,0.71659754]
[1768374645496,2.56400286,144.78,144.73,0.71659754]
[1768374648794,111.10561805,144.81,144.73,0.71659754]
[1768374649093,2.56400286,144.78,144.73,0.71659754]
[1768374661282,2.56400286,144.79,144.73,0.71659754]
[1768374661482,111.10561805,144.81,144.73,0.71659754]
[1768374661801,2.56400286,144.79,144.73,0.71659754]
[1768374662003,2.56400286,144.78,144.73,0.71659754]
[1768374663704,2.56400286,144.77,144.73,0.71659754]
[1768374664009,2.56400286,144.78,144.73,0.71659754]
[1768374664810,2.56400286,144.77,144.73,0.71659754]
[1768374665813,2.56400286,144.78,144.73,0.71659754]
[1768374669618,2.56400286,144.79,144.73,0.71659754]
[1768374675407,4.00581473,144.79,144.73,0.71659754]
[1768374678828,12.6,144.8,144.73,0.71659754]
[1768374679013,4.00581473,144.79,144.73,0.71659754]
[1768374684429,4.00581473,144.78,144.73,0.71659754]
[1768374685336,12.6,144.8,144.73,0.71659754]
[1768374685511,16.60581473,144.8,144.75,0.65575526]
[1768374687731,7.35950748,144.84,144.78,0.65575526]
[1768374688035,4.00581473,144.82,144.77,0.65575526]
[1768374688238,4.00581473,144.81,144.77,0.65575526]
[1768374689232,4.00581473,144.81,144.76,4.66156999]
[1768374689413,4.00581473,144.81,144.76,0.65575526]
[1768374692646,4.00581473,144.8,144.76,0.65575526]
[1768374694028,4.00581473,144.81,144.76,0.65575526]
[1768374696815,19.95950748,144.84,144.76,0.65575526]
[1768374697140,0.45500001,144.84,144.78,0.69529771]
[1768374697331,4.00581473,144.82,144.78,0.69529771]
[1768374700159,4.00581473,144.83,144.78,0.69529771]
[1768374701542,4.46081474,144.84,144.79,0.69529771]
[1768374702627,0.45500001,144.84,144.8,0.69529771]
[1768374703339,4.46081474,144.84,144.8,0.69529771]
[1768374703646,4.46081474,144.84,144.79,4.70111244]
[1768374703945,0.45500001,144.84,144.79,4.70111244]
[1768374704144,4.46081474,144.84,144.79,4.70111244]
[1768374704352,0.45500001,144.84,144.79,4.70111244]
[1768374704529,4.46081474,144.84,144.8,0.69529771]
[1768374705841,0.45500001,144.84,144.83,0.69529771]
[1768374706222,0.1,144.88,144.83,0.69529771]
[1768374706421,4.10581473,144.88,144.83,0.69529771]
[1768374707441,4.00581473,144.87,144.83,0.69529771]
[1768374708551,4.00581473,144.86,144.83,0.69529771]
[1768374709125,7.00233566,144.88,144.79,0.69529771]
[1768374709336,4.00581473,144.83,144.8,0.69529771]
[1768374711645,4.00581473,144.83,144.78,0.69529771]
[1768374713237,4.00581473,144.82,144.77,0.69529771]
[1768374713742,40.23017677,144.86,144.78,0.69529771]
[1768374713929,4.00581473,144.83,144.78,0.69529771]
[1768374719242,4.00581473,144.82,144.78,0.69529771]
[1768374720456,4.00581473,144.81,144.76,0.69529771]
[1768374720636,6.90418137,144.84,144.77,0.69529771]
[1768374720835,4.00581473,144.81,144.77,0.69529771]
[1768374721033,4.00581473,144.8,144.72,0.69529771]
[1768374721334,4.00581473,144.8,144.71,6.6801107]
[1768374721335,4.00581473,144.79,144.75,0.69529771]
[1768374721636,4.00581473,144.77,144.72,0.69529771]
[1768374721837,4.00581473,144.77,144.73,0.69529771]
[1768374722355,4.00581473,144.75,144.73,0.69529771]
[1768374723241,27.69316555,144.8,144.73,0.69529771]
[1768374723558,40.29316555,144.8,144.73,0.69529771]
[1768374723862,4.00581473,144.75,144.71,0.69529771]
[1768374724358,4.00581473,144.76,144.71,0.69529771]
[1768374725262,4.00581473,144.74,144.71,0.69529771]
[1768374725469,4.00581473,144.72,144.68,0.67563978]
[1768374725762,4.00581473,144.73,144.68,0.67563978]
[1768374726261,4.00581473,144.74,144.69,0.67563978]
[1768374727063,4.00581473,144.73,144.69,0.67563978]
[1768374727248,4.00581473,144.72,144.69,0.67563978]
[1768374727442,4.00581473,144.73,144.69,0.67563978]
[1768374730065,4.00581473,144.72,144.69,0.67563978]
[1768374730247,4.00581473,144.76,144.69,0.67563978]
[1768374730452,4.00581473,144.72,144.69,0.67563978]
[1768374730841,4.00581473,144.73,144.69,0.67563978]
[1768374733375,4.00581473,144.72,144.69,0.67563978]
[1768374734472,4.00581473,144.71,144.69,0.67563978]
[1768374735454,2.56562958,144.71,144.69,0.67563978]
[1768374739648,6.90757108,144.78,144.7,6.6801107]
[1768374739855,2.56562958,144.75,144.71,0.66491183]
[1768374741571,2.56562958,144.76,144.71,0.66491183]
[1768374742259,2.56562958,144.75,144.71,0.66491183]
[1768374743559,2.56562958,144.76,144.71,0.66491183]
[1768374744377,2.56562958,144.75,144.71,0.66491183]
[1768374747175,2.56443867,144.75,144.71,0.66491183]
[1768374751286,2.56443867,144.75,144.7,13.26491183]
[1768374751975,2.56443867,144.75,144.71,0.66491183]
[1768374752156,2.56443867,144.74,144.71,0.66491183]
[1768374753176,2.56443867,144.75,144.71,0.66491183]
[1768374754187,6.90607734,144.8,144.71,0.66491183]
[1768374754477,2.56443867,144.75,144.71,0.66491183]
[1768374756787,2.56443867,144.74,144.71,0.66491183]
[1768374761584,2.56443867,144.73,144.71,0.66491183]
[1768374761777,2.56443867,144.72,144.7,12.6]
[1768374763693,2.56443867,144.72,144.68,12.6]
[1768374763990,2.56443867,144.72,144.69,0.67492599]
[1768374764776,3.28768989,144.72,144.69,0.67492599]
[1768374764978,2.56443867,144.72,144.69,0.67492599]
[1768374765286,3.28768989,144.72,144.69,0.67492599]
[1768374765473,2.56443867,144.72,144.69,0.67492599]
[1768374765892,3.28768989,144.72,144.69,0.67492599]
[1768374766090,2.56443867,144.72,144.69,0.67492599]
[1768374766389,2.56443867,144.7,144.68,0.67492599]
[1768374768793,0.72325122,144.71,144.68,0.67492599]
[1768374768991,3.28768989,144.71,144.68,0.67492599]
[1768374769179,2.56443867,144.71,144.68,0.67492599]
[1768374769902,3.28768989,144.71,144.68,0.67492599]
[1768374770077,2.56443867,144.71,144.68,0.67492599]
[1768374770282,2.56443867,144.72,144.68,0.67492599]
[1768374771002,3.28768989,144.72,144.68,0.67492599]
[1768374771194,2.56443867,144.71,144.68,0.67492599]
[1768374772103,3.28768989,144.71,144.68,0.67492599]
[1768374772302,2.56443867,144.7,144.67,0.87492599]
[1768374772602,2.56443867,144.7,144.68,0.67492599]
[1768374772794,1.83943867,144.7,144.69,0.67492599]
[1768374773002,1.11443867,144.7,144.69,0.67492599]
[1768374773186,1.11443867,144.7,144.67,0.2]
[1768374773187,1.11443867,144.7,144.68,0.04474927]
[1768374773877,1.83768989,144.7,144.67,0.24474927]
[1768374774293,1.11443867,144.7,144.67,0.24474927]
[1768374774902,1.83768989,144.7,144.67,0.2]
[1768374775218,3.28768989,144.71,144.68,0.04474927]
[1768374777205,3.28768989,144.71,144.67,0.2]
[1768374777412,3.28768989,144.71,144.68,0.04474927]
[1768374778007,0.72325122,144.71,144.68,0.04474927]
[1768374778187,0.72325122,144.69,144.67,0.2]
[1768374778387,2.56443867,144.7,144.67,0.87492599]
[1768374778997,2.56443867,144.7,144.68,0.67492599]
[1768374780219,2.56443867,144.7,144.67,0.87492599]
[1768374780511,2.56443867,144.7,144.68,0.67492599]
[1768374781127,0.72325122,144.71,144.68,0.67492599]
[1768374781415,2.56443867,144.7,144.68,0.67492599]
[1768374781809,3.28768989,144.71,144.68,0.67492599]
[1768374785114,3.28768989,144.71,144.67,0.2]
[1768374785299,3.28768989,144.71,144.68,0.69131948]
[1768374785911,3.28768989,144.71,144.67,0.89131948]
[1768374786212,3.28768989,144.71,144.68,0.69131948]
[1768374786921,3.28768989,144.71,144.67,0.89131948]
[1768374787128,3.28768989,144.71,144.68,0.69131948]
[1768374787595,0.70951348,144.7,144.67,0.89131948]
[1768374787795,3.27395215,144.71,144.68,0.69131948]
[1768374789717,0.70951348,144.7,144.67,0.2]
[1768374789917,0.70951348,144.7,144.67,0.89131948]
[1768374790514,0.70951348,144.7,144.67,0.2]
[1768374790823,2.56443867,144.71,144.68,0.69131948]
[1768374791116,3.27395215,144.71,144.68,0.69131948]
[1768374793417,2.56443867,144.7,144.68,0.69131948]
[1768374793713,2.56443867,144.7,144.67,0.2]
[1768374793919,2.56443867,144.7,144.68,0.69131948]
[1768374794718,2.56443867,144.7,144.67,0.89131948]
[1768374794922,0.70951348,144.71,144.67,0.89131948]
[1768374795219,2.56443867,144.7,144.67,0.89131948]
[1768374795807,2.56443867,144.7,144.68,0.69131948]
[1768374796129,2.56443867,144.7,144.67,0.89131948]
[1768374796308,2.56443867,144.7,144.68,0.69131948]
[1768374797327,4.0089164,144.7,144.68,0.69131948]
[1768374799030,4.0089164,144.7,144.67,0.91011648]
[1768374799206,4.68783118,144.7,144.67,0.91011648]
[1768374799634,4.68783118,144.7,144.67,0.2]
[1768374800114,0.67891478,144.69,144.67,0.2]
[1768374800314,2e-08,144.69,144.67,0.2]
[1768374801025,4.0089164,144.7,144.67,0.91011648]
[1768374801233,4.0089164,144.7,144.68,0.71011648]
[1768374801609,4.0089164,144.7,144.67,0.2]
[1768374802415,4.0089164,144.7,144.68,0.71011648]
[1768374802830,4.68783118,144.7,144.67,0.2]
[1768374803042,4.68783118,144.7,144.67,0.91011648]
[1768374803835,4.0089164,144.7,144.68,0.71011648]
[1768374804239,0.67891478,144.69,144.67,0.2]
[1768374804531,4.0089164,144.7,144.67,0.91011648]
[1768374804728,4.0089164,144.71,144.67,0.91011648]
[1768374805518,4.0089164,144.71,144.68,0.71011648]
[1768374806529,0.67891478,144.76,144.68,0.71011648]
[1768374806719,0.19330264,144.73,144.68,0.71011648]
[1768374806913,4.0089164,144.73,144.68,0.71011648]
[1768374807121,4.0089164,144.75,144.68,0.71011648]
[1768374808331,4.0089164,144.75,144.69,0.71011648]
[1768374808630,4.0089164,144.75,144.71,0.71011648]
[1768374809229,0.19330264,144.76,144.71,0.71011648]
[1768374809436,0.28455138,144.81,144.73,6.6801107]
[1768374809623,4.68783118,144.78,144.73,6.6801107]
[1768374810025,4.68783118,144.78,144.74,0.67583002]
[1768374810236,4.0089164,144.77,144.74,0.67583002]
[1768374810619,4.68783118,144.77,144.74,0.67583002]
[1768374810924,4.68783118,144.77,144.7,12.6]
[1768374810925,4.68783118,144.76,144.72,0.67583002]
[1768374811126,4.0089164,144.75,144.72,0.67583002]
[1768374811327,4.68783118,144.75,144.72,0.67583002]
[1768374811634,4.68783118,144.74,144.7,13.27583002]
[1768374811826,0.67891478,144.74,144.7,13.27583002]
[1768374812326,0.67891478,144.74,144.71,0.67583002]
[1768374812727,0.67891478,144.74,144.7,12.6]
[1768374813024,0.67891478,144.74,144.7,13.27583002]
[1768374814539,0.67891478,144.74,144.7,12.6]
[1768374814747,0.67891478,144.72,144.68,0.67583002]
[1768374815041,0.37218829,144.72,144.67,0.2]
[1768374815227,0.37218829,144.72,144.67,0.87906458]
[1768374815828,0.37218829,144.72,144.68,0.67906458]
[1768374816035,0.37218829,144.72,144.67,0.87906458]
[1768374816236,0.37218829,144.72,144.67,0.2]
[1768374816448,0.37218829,144.72,144.67,0.87906458]
[1768374822345,0.69235021,144.71,144.67,0.87906458]
[1768374824724,0.69235021,144.71,144.67,0.2]
[1768374824930,0.69235021,144.7,144.67,0.2]
[1768374826347,0.69235021,144.69,144.67,0.2]
[1768374827141,0.69235021,144.69,144.64,0.2]
[1768374827142,0.69235021,144.67,144.64,0.2]
[1768374827354,4.0089164,144.69,144.64,0.2]
[1768374827355,4.0089164,144.66,144.64,0.2]
[1768374828053,4.0089164,144.67,144.64,0.2]
[1768374829326,0.69235021,144.66,144.64,0.2]
[1768374829529,4.70126661,144.66,144.64,0.2]
[1768374833947,4.0089164,144.65,144.64,0.2]
[1768374834339,4.70126661,144.65,144.64,0.2]
[1768374835272,4.70126661,144.65,144.61,0.67906458]
[1768374835448,0.69235021,144.64,144.61,0.67906458]